bitfinex/quotes_SOLUSD_20220228
["timestamp","ask_amount","ask_price","bid_price","bid_amount"]
[1646044219735,1.53504451,89.865,89.757,6.0]
[1646044220137,1.53504451,89.865,89.758,2.74678921]
[1646044220337,1.53504451,89.865,89.76,110.9]
[1646044220637,1.53504451,89.865,89.762,110.9]
[1646044220837,1.53504451,89.865,89.764,110.9]
[1646044221036,1.53504451,89.865,89.766,110.9]
[1646044221237,1.53504451,89.865,89.769,25.3082833]
[1646044221439,1.53504451,89.865,89.77,6.0]
[1646044221639,1.53504451,89.865,89.769,25.3082833]
[1646044222138,110.9,89.859,89.741,2.74678921]
[1646044222337,110.9,89.857,89.742,6.0]
[1646044222560,110.9,89.855,89.742,6.0]
[1646044222740,110.9,89.855,89.736,23.924]
[1646044222741,110.9,89.853,89.737,6.0]
[1646044223038,1.75730836,89.838,89.737,6.0]
[1646044223239,1.64488496,89.836,89.738,30.53530664]
[1646044223639,2.74678921,89.835,89.738,30.53530664]
[1646044223838,110.9,89.817,89.738,30.53530664]
[1646044224039,1.84266846,89.816,89.738,30.53530664]
[1646044229745,0.00486742,89.852,89.74,110.9]
[1646044229947,17.079,89.944,89.803,5.0]
[1646044230144,1.77896839,89.993,89.834,66.41]
[1646044230346,1.45811342,90.016,89.851,177.31]
[1646044230549,1.59448361,90.046,89.861,177.31]
[1646044230744,66.41,90.044,89.864,110.9]
[1646044230944,110.9,90.015,89.867,2.3552412]
[1646044231144,110.9,90.001,89.868,6.0]
[1646044231347,110.9,89.997,89.871,2.49199398]
[1646044231547,110.9,89.995,89.872,6.0]
[1646044231746,110.9,89.993,89.872,6.0]
[1646044231945,110.9,89.989,89.872,6.0]
[1646044232144,4.447,89.988,89.871,6.0]
[1646044232344,110.9,89.987,89.871,8.71146746]
[1646044232545,1.3710643,89.986,89.872,4.447]
[1646044232745,1.3710643,89.986,89.873,6.0]
[1646044233346,4.447,89.985,89.873,6.0]
[1646044233647,1.3710643,89.986,89.874,7.19378921]
[1646044233846,59.95248044,89.998,89.91,200.31]
[1646044233847,1.57636268,89.997,89.91,200.31]
[1646044234046,1.57636268,89.997,89.92,16.02]
[1646044234245,1.57636268,89.997,89.92,216.33]
[1646044234845,112.47636268,89.997,89.92,216.33]
[1646044235046,1.83535678,89.996,89.92,216.33]
[1646044235657,1.83535678,89.996,89.93,200.31]
[1646044235847,59.95248044,89.998,89.94,16.02]
[1646044236047,59.95248044,89.998,89.94,216.33]
[1646044237449,4.445,90.045,89.941,3.09337185]
[1646044237649,1.71839519,90.052,89.97,200.31]
[1646044237850,1.71839519,90.052,89.98,16.02]
[1646044238357,44.71166503,90.051,89.98,16.02]
[1646044238550,1.7023597,90.05,89.98,16.02]
[1646044238953,1.7023597,90.05,89.98,216.33]
[1646044239150,1.7023597,90.05,89.944,4.442]
[1646044239349,1.7023597,90.05,89.95,180.32]
[1646044239551,1.7023597,90.05,89.951,8.97221935]
[1646044241156,1.7023597,90.05,89.951,6.0]
[1646044241355,112.6023597,90.05,89.95,180.32]
[1646044241557,4.444,90.049,89.95,13.36]
[1646044241756,1.61832872,90.045,89.885,22.6501]
[1646044241983,61.46377535,90.014,89.9,13.36]
[1646044242181,1.80083875,90.012,89.9,13.36]
[1646044242381,4.446,90.011,89.9,13.36]
[1646044243182,1.80083875,90.012,89.9,13.36]
[1646044243983,4.446,90.011,89.9,13.36]
[1646044244584,1.80083875,90.012,89.9,13.36]
[1646044246286,4.446,90.011,89.9,13.36]
[1646044247088,177.31,90.009,89.9,13.36]
[1646044247388,110.9,90.007,89.9,13.36]
[1646044247590,110.9,89.997,89.9,13.36]
[1646044247788,110.9,89.995,89.9,13.36]
[1646044247988,110.9,89.989,89.9,13.36]
[1646044248189,1.53050174,89.986,89.9,13.36]
[1646044248392,110.9,89.983,89.9,13.36]
[1646044248789,1.8539452,89.982,89.9,13.36]
[1646044250993,112.26263286,89.981,89.845,2.83123496]
[1646044251199,66.41,89.974,89.88,13.36]
[1646044251398,4.448,89.98,89.87,13.36]
[1646044251399,57.24039804,89.968,89.87,13.36]
[1646044251593,57.24039804,89.968,89.835,2.74678921]
[1646044251594,1.48723778,89.964,89.86,13.36]
[1646044251793,4.448,89.963,89.86,13.36]
[1646044252195,1.48723778,89.964,89.86,13.36]
[1646044252495,4.448,89.963,89.86,13.36]
[1646044252696,112.38723778,89.964,89.86,13.36]
[1646044253002,1.46410998,89.963,89.86,13.36]
[1646044253194,4.448,89.962,89.86,13.36]
[1646044253998,110.9,89.961,89.86,13.36]
[1646044254199,110.9,89.959,89.86,13.36]
[1646044254399,110.9,89.957,89.86,13.36]
[1646044254600,110.9,89.955,89.86,13.36]
[1646044254799,110.9,89.953,89.86,13.36]
[1646044255000,1.71222514,89.952,89.86,13.36]
[1646044256303,1.71222514,89.952,89.86,16.10678921]
[1646044256700,1.71222514,89.952,89.861,6.0]
[1646044262404,110.9,89.953,89.861,2.98322204]
[1646044262604,57.25816431,89.954,89.862,8.74678921]
[1646044263005,57.25816431,89.954,89.863,2.74678921]
[1646044263203,57.25816431,89.954,89.865,177.31]
[1646044263403,57.25816431,89.954,89.871,179.83295241]
[1646044263607,57.25816431,89.954,89.88,13.36]
[1646044263804,1.52315882,90.001,89.88,13.36]
[1646044263805,1.52315882,90.001,89.881,8.59095229]
[1646044264008,1.63698166,90.007,89.881,8.59095229]
[1646044264206,1.63698166,90.007,89.881,11.3377415]
[1646044264409,112.53698166,90.007,89.882,2.74678921]
[1646044264608,1.40723969,90.006,89.883,6.0]
[1646044264808,110.9,90.004,89.883,6.0]
[1646044265010,1.48767258,90.003,89.883,8.74678921]
[1646044265209,4.447,90.002,89.883,8.74678921]
[1646044266512,4.447,90.002,89.884,110.9]
[1646044266711,1.48767258,90.003,89.887,2.49011725]
[1646044266909,1.48767258,90.003,89.9,13.36]
[1646044267110,1.48767258,90.003,89.901,8.90989352]
[1646044267310,110.9,90.004,89.901,8.90989352]
[1646044268716,46.02678683,90.005,89.903,110.9]
[1646044268912,46.02678683,90.005,89.902,5.74030677]
[1646044268913,46.02678683,90.005,89.912,2.64894851]
[1646044269115,46.02678683,90.005,89.92,13.36]
[1646044269313,46.02678683,90.005,89.921,8.45184214]
[1646044269912,110.9,90.004,89.921,6.0]
[1646044270113,1.41012962,90.003,89.921,6.0]
[1646044272416,1.41012962,90.003,89.92,13.36]
[1646044276839,1.41012962,90.003,89.921,6.0]
[1646044277040,1.41012962,90.003,89.92,13.36]
[1646044277240,1.41012962,90.003,89.921,6.0]
[1646044280444,46.02678683,90.005,89.921,8.6407878]
[1646044281445,110.9,90.004,89.921,8.6407878]
[1646044283445,46.02678683,90.005,89.921,8.6407878]
[1646044283648,46.02678683,90.005,89.921,119.5407878]
[1646044283847,46.02678683,90.005,89.922,2.51354806]
[1646044284048,46.02678683,90.005,89.923,10.446]
[1646044284447,46.02678683,90.005,89.923,6.0]
[1646044285151,46.02678683,90.005,89.924,4.446]
[1646044285350,46.02678683,90.005,89.925,6.0]
[1646044285550,46.02678683,90.005,89.926,4.446]
[1646044285752,46.02678683,90.005,89.94,13.36]
[1646044285952,46.02678683,90.005,89.941,6.0]
[1646044286251,46.02678683,90.005,89.941,8.99698526]
[1646044286450,46.02678683,90.005,89.942,4.445]
[1646044286650,1.75412065,90.034,89.943,6.0]
[1646044287253,1.75412065,90.034,89.944,4.445]
[1646044287456,1.43645372,90.052,89.945,6.0]
[1646044287650,1.43645372,90.052,89.946,4.444]
[1646044287651,54.08593537,90.051,89.946,4.444]
[1646044287850,1.85387967,90.05,89.96,13.36]
[1646044288652,1.85387967,90.05,89.961,8.8631734]
[1646044288951,1.53732768,90.049,89.961,8.8631734]
[1646044289355,54.08593537,90.051,89.961,119.48125541]
[1646044289553,54.08593537,90.051,89.962,2.77995865]
[1646044289755,54.08593537,90.051,89.963,6.0]
[1646044291056,1.59066838,90.05,89.963,6.0]
[1646044291354,1.59066838,90.05,89.961,6.0]
[1646044291754,112.49066838,90.05,89.961,6.0]
[1646044291958,1.71934911,90.049,89.961,6.0]
[1646044292557,54.08593537,90.051,89.961,119.98710568]
[1646044292756,54.08593537,90.051,89.962,2.83461504]
[1646044292955,54.08593537,90.051,89.963,6.0]
[1646044296060,112.31145112,90.05,89.963,6.0]
[1646044296360,1.6093603,90.049,89.961,6.0]
[1646044297260,1.6093603,90.049,89.962,2.36639535]
[1646044297462,54.08593537,90.051,89.963,6.0]
[1646044299664,54.08593537,90.051,89.965,2.83251174]
[1646044299865,54.08593537,90.051,89.98,13.36]
[1646044300066,54.08593537,90.051,89.981,6.0]
[1646044302065,54.08593537,90.051,89.981,8.60441589]
[1646044302265,6.20490366,90.094,89.983,2.87775821]
[1646044302465,6.20490366,90.094,89.982,177.31]
[1646044302466,1.70005146,90.092,89.986,2.51853544]
[1646044302668,1.70005146,90.092,90.0,13.36]
[1646044302865,1.70005146,90.092,90.01,13.36]
[1646044303065,1.70005146,90.092,90.02,13.36]
[1646044303265,44.54447505,90.091,90.02,13.36]
[1646044303465,112.76881873,90.09,90.02,13.36]
[1646044303664,1.67725902,90.089,90.02,13.36]
[1646044304066,1.67725902,90.089,90.001,6.0]
[1646044304267,1.67725902,90.089,90.01,16.01]
[1646044305668,110.9,90.088,90.01,16.01]
[1646044305870,4.442,90.087,90.01,16.01]
[1646044306070,110.9,90.086,90.01,16.01]
[1646044306270,110.9,90.084,90.01,16.01]
[1646044306470,110.9,90.082,90.01,16.01]
[1646044306771,1.59759687,90.081,90.01,16.01]
[1646044307772,1.63912369,90.087,90.01,16.01]
[1646044307974,4.442,90.086,90.01,16.01]
[1646044308977,110.9,90.084,90.01,16.01]
[1646044309174,110.9,90.082,89.99,16.01]
[1646044309398,110.9,90.08,89.99,16.01]
[1646044309597,110.9,90.078,89.99,16.01]
[1646044309799,110.9,90.076,89.99,16.01]
[1646044309998,1.64536648,90.075,89.99,16.01]
[1646044312504,1.64536648,90.075,89.991,6.0]
[1646044313801,59.7537584,90.077,89.995,110.9]
[1646044313999,59.7537584,90.077,90.01,16.01]
[1646044314299,1.74936128,90.089,90.011,110.9]
[1646044314499,1.74936128,90.089,90.01,16.01]
[1646044314500,24.0375,90.098,90.014,68.83270195]
[1646044314701,24.0375,90.098,90.01,216.17]
[1646044314702,24.0375,90.098,90.021,113.52161204]
[1646044314899,1.50791774,90.141,90.031,113.60538585]
[1646044315099,4.44,90.146,90.037,110.9]
[1646044315300,44.17012185,90.145,90.051,110.9]
[1646044315703,44.17012185,90.145,90.057,110.9]
[1646044315901,44.17012185,90.145,90.07,16.01]
[1646044316301,44.17012185,90.145,90.071,110.9]
[1646044316502,44.17012185,90.145,90.072,8.52905735]
[1646044317401,44.17012185,90.145,90.072,6.0]
[1646044317601,44.17012185,90.145,90.071,6.0]
[1646044318001,23.7017,90.178,90.071,6.0]
[1646044318201,23.7017,90.178,90.09,200.16]
[1646044318406,23.7017,90.178,90.1,16.01]
[1646044318802,112.6,90.173,90.1,16.01]
[1646044319002,45.3767547,90.172,90.1,16.01]
[1646044319205,110.9,90.171,90.1,16.01]
[1646044319402,1.47819155,90.17,90.1,16.01]
[1646044324512,43.97560735,90.172,90.1,16.01]
[1646044324711,43.97560735,90.172,90.101,116.9]
[1646044324917,43.97560735,90.172,90.101,119.64678921]
[1646044325214,23.7017,90.178,90.101,119.64678921]
[1646044325412,23.7017,90.178,90.102,2.53963915]
[1646044325612,22.9713,90.195,90.105,2.85896772]
[1646044325915,22.9713,90.195,90.12,16.01]
[1646044326115,51.17517467,90.194,90.12,16.01]
[1646044326314,51.17517467,90.194,90.121,6.0]
[1646044328315,22.9713,90.195,90.121,6.0]
[1646044328516,22.9713,90.195,90.122,2.74678921]
[1646044328719,1.73892195,90.21,90.123,6.0]
[1646044328917,22.883,90.211,90.123,6.0]
[1646044329318,45.55453031,90.21,90.123,6.0]
[1646044330520,45.55453031,90.21,90.124,2.74678921]
[1646044330718,45.55453031,90.21,90.13,200.16]
[1646044330920,45.55453031,90.21,90.14,16.01]
[1646044331120,45.55453031,90.21,90.141,6.0]
[1646044331720,1.51167858,90.226,90.141,6.0]
[1646044332720,58.21066023,90.225,90.141,22.8705]
[1646044333421,1.36728158,90.224,90.141,22.8705]
[1646044334823,58.21066023,90.225,90.141,22.8705]
[1646044337624,110.9,90.224,90.141,22.8705]
[1646044337823,112.28216745,90.224,90.141,22.8705]
[1646044339223,1.38216745,90.224,90.141,22.8705]
[1646044339423,1.8037946,90.224,90.141,22.8705]
[1646044340424,58.21066023,90.225,90.141,22.8705]
[1646044340625,58.21066023,90.225,90.142,177.31]
[1646044340823,23.1736,90.228,90.151,110.9]
[1646044341023,23.1736,90.228,90.16,16.01]
[1646044341225,23.1736,90.228,90.161,6.0]
[1646044341823,60.2042938,90.227,90.161,6.0]
[1646044342225,24.8166,90.234,90.162,110.9]
[1646044342426,1.75979511,90.27,90.17,200.16]
[1646044342627,1.75979511,90.27,90.18,16.01]
[1646044342826,1.75979511,90.27,90.181,6.0]
[1646044343155,47.3967,90.272,90.183,2.83578725]
[1646044343327,59.04626175,90.271,90.184,6.0]
[1646044344329,59.04626175,90.271,90.185,110.9]
[1646044344527,59.04626175,90.271,90.2,16.01]
[1646044344727,59.04626175,90.271,90.187,110.9]
[1646044344728,59.04626175,90.271,90.21,16.01]
[1646044344927,59.04626175,90.271,90.22,16.01]
[1646044346333,1.68021084,90.304,90.221,6.0]
[1646044346533,46.1989,90.305,90.221,6.0]
[1646044346932,46.1989,90.305,90.222,2.74678921]
[1646044347132,46.1989,90.305,90.224,110.9]
[1646044347434,46.1989,90.305,90.227,2.9120278]
[1646044347632,46.1989,90.305,90.24,126.91]
[1646044347832,46.1989,90.305,90.241,6.0]
[1646044352557,1.58849032,90.304,90.241,6.0]
[1646044352757,1.58849032,90.304,90.24,16.01]
[1646044353359,1.6916362,90.303,90.24,16.01]
[1646044356962,110.9,90.3,90.2,16.01]
[1646044357164,6.22176782,90.299,90.2,16.01]
[1646044357361,1.68038141,90.297,90.2,16.01]
[1646044357561,4.432,90.296,90.2,16.01]
[1646044358361,6.13367791,90.296,90.2,16.01]
[1646044358563,1.55032847,90.294,90.2,16.01]
[1646044358962,110.9,90.292,90.2,16.01]
[1646044359165,110.9,90.29,90.2,16.01]
[1646044359365,1.78619322,90.289,90.2,16.01]
[1646044359565,110.9,90.286,90.2,16.01]
[1646044359767,4.432,90.285,90.2,16.01]
[1646044359964,110.9,90.284,90.2,16.01]
[1646044360165,110.9,90.282,90.2,16.01]
[1646044360367,110.9,90.28,90.2,16.01]
[1646044360566,110.9,90.278,90.2,16.01]
[1646044360767,110.9,90.276,90.2,16.01]
[1646044360967,110.9,90.274,90.2,16.01]
[1646044361173,110.9,90.272,90.2,16.01]
[1646044361367,1.41508186,90.271,90.2,16.01]
[1646044362068,1.41508186,90.271,90.159,17.021]
[1646044362270,1.66073827,90.268,90.19,16.01]
[1646044362868,4.433,90.267,90.19,16.01]
[1646044363469,1.66073827,90.268,90.19,16.01]
[1646044363673,47.9333,90.27,90.19,16.01]
[1646044363674,4.433,90.267,90.19,16.01]
[1646044363875,47.9333,90.27,90.19,16.01]
[1646044363876,47.9333,90.27,90.191,6.0]
[1646044364074,47.9333,90.27,90.192,4.433]
[1646044364277,47.9333,90.27,90.193,6.0]
[1646044364472,47.9333,90.27,90.193,11.65]
[1646044368376,47.9333,90.27,90.2,200.16]
[1646044368578,47.9333,90.27,90.21,16.01]
[1646044368776,47.9333,90.27,90.211,6.0]
[1646044369176,46.25846786,90.274,90.211,6.0]
[1646044369980,24.2444,90.286,90.211,6.0]
[1646044370980,59.18439074,90.285,90.211,6.0]
[1646044371381,59.18439074,90.285,90.211,22.4113]
[1646044373790,1.42649785,90.284,90.211,6.0]
[1646044375096,1.42649785,90.284,90.21,16.01]
[1646044375286,1.42649785,90.284,90.171,4.432]
[1646044375487,21.39715029,90.283,90.175,6.0]
[1646044375686,21.39715029,90.283,90.18,16.01]
[1646044375888,1.52737201,90.282,90.18,16.01]
[1646044377610,3.03528975,90.282,90.18,16.01]
[1646044377807,4.433,90.281,90.18,16.01]
[1646044378006,3.03528975,90.282,90.18,16.01]
[1646044378208,1.50791774,90.281,90.18,16.01]
[1646044378408,3.03528975,90.282,90.18,16.01]
[1646044378609,1.50791774,90.28,90.18,16.01]
[1646044380010,4.433,90.279,90.18,16.01]
[1646044380314,1.56858676,90.281,90.18,18.61423999]
[1646044380513,112.46858676,90.281,90.181,9.10903936]
[1646044380714,112.46858676,90.281,90.181,11.85582857]
[1646044381014,1.56858676,90.281,90.182,7.17978921]
[1646044381213,1.56858676,90.281,90.183,6.0]
[1646044381413,1.56858676,90.281,90.184,4.433]
[1646044381614,1.56858676,90.281,90.185,6.0]
[1646044381812,1.56858676,90.281,90.2,16.01]
[1646044382111,1.56858676,90.281,90.201,6.0]
[1646044382313,110.9,90.284,90.201,6.0]
[1646044382714,59.18439074,90.285,90.201,6.0]
[1646044382919,59.18439074,90.285,90.202,4.432]
[1646044383114,59.18439074,90.285,90.203,6.0]
[1646044383315,59.18439074,90.285,90.204,4.432]
[1646044383518,59.18439074,90.285,90.205,6.0]
[1646044383716,59.18439074,90.285,90.206,4.432]
[1646044383917,59.18439074,90.285,90.22,16.01]
[1646044384715,59.18439074,90.285,90.22,18.72856236]
[1646044384916,59.18439074,90.285,90.22,16.01]
[1646044385316,59.18439074,90.285,90.22,18.53109804]
[1646044386217,59.18439074,90.285,90.221,6.0]
[1646044388219,24.781,90.303,90.222,110.9]
[1646044388421,24.781,90.303,90.224,110.9]
[1646044388620,24.781,90.303,90.225,9.08312199]
[1646044388821,24.781,90.303,90.225,5.8299112]
[1646044389020,24.781,90.303,90.226,6.0]
[1646044389223,42.72910598,90.302,90.24,16.01]
[1646044389422,42.72910598,90.302,90.241,6.0]
[1646044390425,42.72910598,90.302,90.241,8.63912305]
[1646044390627,23.2449,90.32,90.241,8.63912305]
[1646044391626,47.98814727,90.319,90.241,8.63912305]
[1646044392630,25.76381774,90.335,90.242,177.31]
[1646044392845,24.2559,90.335,90.251,66.41]
[1646044393026,24.2559,90.335,90.26,16.01]
[1646044393229,24.2559,90.335,90.261,8.89107104]
[1646044393525,24.2559,90.335,90.261,11.63786025]
[1646044393727,51.776277,90.334,90.261,11.63786025]
[1646044393928,51.776277,90.334,90.262,2.74678921]
[1646044394127,51.776277,90.334,90.263,6.0]
[1646044394326,51.776277,90.334,90.261,8.89107104]
[1646044396127,23.2836,90.357,90.262,110.9]
[1646044396327,23.2836,90.357,90.265,3.11844275]
[1646044396529,23.2836,90.357,90.28,16.01]
[1646044396727,23.2836,90.357,90.29,16.01]
[1646044396927,23.2836,90.357,90.3,16.01]
[1646044397127,60.85942482,90.356,90.31,16.01]
[1646044398828,23.2836,90.357,90.31,16.01]
[1646044399827,57.39136193,90.356,90.31,16.01]
[1646044400629,23.2836,90.357,90.31,16.01]
[1646044401029,23.2836,90.357,90.311,6.0]
[1646044401630,56.35083961,90.356,90.311,6.0]
[1646044403036,56.35083961,90.356,90.31,16.01]
[1646044407234,56.35083961,90.356,90.3,16.01]
[1646044407637,110.9,90.355,90.3,16.01]
[1646044407835,1.61045218,90.354,90.28,16.01]
[1646044409040,56.35083961,90.356,90.281,6.0]
[1646044410538,56.35083961,90.356,90.282,4.428]
[1646044410740,56.35083961,90.356,90.283,6.0]
[1646044410937,56.35083961,90.356,90.284,4.428]
[1646044411237,56.35083961,90.356,90.285,6.0]
[1646044411437,56.35083961,90.356,90.29,200.16]
[1646044411641,56.35083961,90.356,90.3,16.01]
[1646044411836,24.2911,90.384,90.301,6.0]
[1646044412738,24.2911,90.384,90.301,8.80623428]
[1646044412937,50.81533915,90.376,90.301,8.80623428]
[1646044413937,50.81533915,90.376,90.302,4.426]
[1646044414140,50.81533915,90.376,90.303,6.0]
[1646044414337,50.81533915,90.376,90.304,4.426]
[1646044414538,50.81533915,90.376,90.305,6.0]
[1646044414738,50.81533915,90.376,90.32,16.01]
[1646044414937,50.81533915,90.376,90.321,6.0]
[1646044421347,1.50794676,90.375,90.32,16.01]
[1646044421548,50.81533915,90.376,90.32,16.01]
[1646044423150,112.56985009,90.375,90.32,16.01]
[1646044423351,1.42810906,90.374,90.32,16.01]
[1646044425151,1.42810906,90.374,90.3,16.01]
[1646044425351,1.42810906,90.374,90.301,6.0]
[1646044426570,1.42810906,90.374,90.3,16.01]
[1646044427170,4.426,90.373,90.3,16.01]
[1646044427770,4.426,90.373,90.278,16.5545]
[1646044427970,1.70996228,90.37,90.28,16.01]
[1646044428170,4.426,90.369,90.28,16.01]
[1646044428370,1.52275407,90.367,90.28,16.01]
[1646044428576,4.428,90.366,90.28,16.01]
[1646044428770,110.9,90.356,90.241,46.972]
[1646044428972,1.75734394,90.355,90.25,16.01]
[1646044429171,4.429,90.354,90.251,17.57254214]
[1646044429473,1.63374092,90.353,90.251,17.57254214]
[1646044429671,110.9,90.352,90.251,17.57254214]
[1646044429870,1.648248,90.351,90.251,17.57254214]
[1646044430471,110.9,90.35,90.251,17.57254214]
[1646044430672,1.79221248,90.349,90.251,17.57254214]
[1646044430872,110.9,90.347,90.251,17.57254214]
[1646044431073,1.36411237,90.346,90.251,17.57254214]
[1646044431373,1.36411237,90.346,90.251,11.57254214]
[1646044431675,4.429,90.345,90.251,11.57254214]
[1646044432575,1.36411237,90.346,90.251,11.57254214]
[1646044433480,4.429,90.345,90.251,11.57254214]
[1646044434779,4.429,90.345,90.25,16.01]
[1646044434979,110.9,90.344,90.25,16.01]
[1646044435178,110.9,90.342,90.25,16.01]
[1646044435381,4.429,90.341,90.25,16.01]
[1646044435578,110.9,90.34,90.25,16.01]
[1646044435777,6.24583695,90.341,90.25,16.01]
[1646044435778,110.9,90.338,90.25,16.01]
[1646044435978,110.9,90.336,90.25,16.01]
[1646044436180,110.9,90.334,90.25,16.01]
[1646044436380,110.9,90.332,90.25,16.01]
[1646044436580,4.43,90.331,90.25,16.01]
[1646044436783,1.72680208,90.329,90.25,16.01]
[1646044437083,4.43,90.328,90.24,16.01]
[1646044437280,110.9,90.326,90.23,16.01]
[1646044437481,110.9,90.324,90.23,16.01]
[1646044437681,1.7567118,90.323,90.23,16.01]
[1646044438082,4.43,90.322,90.23,16.01]
[1646044439584,1.7567118,90.323,90.23,16.01]
[1646044440784,1.7567118,90.323,90.231,6.0]
[1646044441284,1.7567118,90.323,90.231,8.67648959]
[1646044441685,1.7567118,90.323,90.232,23.1212]
[1646044441887,1.7567118,90.323,90.233,8.45789336]
[1646044442287,22.6233,90.327,90.235,2.28464556]
[1646044442486,60.7737108,90.348,90.24,200.16]
[1646044442687,24.508,90.347,90.251,66.41]
[1646044442888,60.7737108,90.348,90.265,110.9]
[1646044443086,60.7737108,90.348,90.281,2.95330849]
[1646044443286,60.7737108,90.348,90.267,110.9]
[1646044443287,60.7737108,90.348,90.29,16.01]
[1646044443487,60.7737108,90.348,90.3,16.01]
[1646044443687,60.7737108,90.348,90.31,16.01]
[1646044443889,60.7737108,90.348,90.291,6.0]
[1646044444087,60.7737108,90.348,90.3,16.01]
[1646044446293,110.9,90.347,90.3,16.01]
[1646044446790,1.71652687,90.346,90.25,200.16]
[1646044446990,1.71652687,90.346,90.247,24.5635]
[1646044447195,110.9,90.344,90.26,16.01]
[1646044447494,1.73932169,90.343,90.26,16.01]
[1646044447894,28.60810642,90.342,90.221,24.7245]
[1646044448095,1.44003929,90.34,90.23,16.01]
[1646044448393,4.43,90.339,90.23,16.01]
[1646044448592,1.36905148,90.338,90.23,16.01]
[1646044448792,115.33,90.337,90.23,16.01]
[1646044448992,1.67480462,90.336,90.23,16.01]
[1646044449191,4.43,90.335,90.23,16.01]
[1646044449392,1.45392785,90.334,90.23,16.01]
[1646044449992,4.43,90.333,90.23,16.01]
[1646044450393,4.43,90.333,90.231,6.0]
[1646044450595,110.9,90.331,90.231,6.0]
[1646044450793,1.6399364,90.33,90.231,6.0]
[1646044451195,1.6399364,90.33,90.231,8.3546858]
[1646044451396,1.6399364,90.33,90.232,4.43]
[1646044451696,1.6399364,90.33,90.233,6.0]
[1646044451896,110.9,90.329,90.233,6.0]
[1646044452097,1.73683592,90.328,90.233,6.0]
[1646044452298,1.73683592,90.328,90.232,6.0]
[1646044453500,4.43,90.327,90.232,6.0]
[1646044453697,4.43,90.327,90.231,6.0]
[1646044455298,1.73683592,90.328,90.231,6.0]
[1646044457000,24.17910642,90.327,90.222,4.43]
[1646044457200,115.33,90.326,90.204,4.43]
[1646044457400,1.41798653,90.325,90.2,16.01]
[1646044457704,1.74406591,90.323,90.196,11.57837267]
[1646044457900,110.9,90.307,90.182,4.431]
[1646044458102,110.9,90.305,90.182,4.431]
[1646044458300,4.432,90.304,90.182,4.431]
[1646044458600,1.5787017,90.298,90.183,21.40147709]
[1646044458901,4.432,90.297,90.182,4.431]
[1646044459100,112.37823116,90.296,90.182,4.431]
[1646044459299,110.9,90.294,90.182,4.431]
[1646044459501,110.9,90.292,90.182,4.431]
[1646044459703,110.9,90.29,90.182,4.431]
[1646044459901,110.9,90.288,90.182,4.431]
[1646044460103,110.9,90.286,90.182,4.431]
[1646044460404,1.84039061,90.285,90.182,4.431]
[1646044461602,1.71639282,90.284,90.182,4.431]
[1646044462103,4.432,90.283,90.182,4.431]
[1646044462302,112.72820268,90.281,90.182,4.431]
[1646044462502,110.9,90.279,90.182,4.431]
[1646044462704,110.9,90.277,90.182,4.431]
[1646044462909,110.9,90.275,90.182,4.431]
[1646044463106,110.9,90.273,90.182,4.431]
[1646044463306,110.9,90.271,90.182,4.431]
[1646044463507,110.9,90.269,90.182,4.431]
[1646044463707,110.9,90.267,90.182,4.431]